bitfinex/quotes_ETHUSD_20240917
["timestamp","ask_amount","ask_price","bid_price","bid_amount"]
[1726597201435,10.30475552,2367.5,2367.4,0.0404994]
[1726597201591,12.33304316,2367.5,2367.4,0.0404994]
[1726597201783,3.88532316,2367.5,2367.4,0.0404994]
[1726597202119,3.60031182,2367.5,2367.4,0.0404994]
[1726597202415,3.60031182,2367.5,2367.4,8.4885794]
[1726597202416,1.85703552,2367.5,2367.4,8.4885794]
[1726597202620,1.85703552,2367.5,2367.4,10.9310794]
[1726597202621,1.64535229,2367.5,2367.4,10.9310794]
[1726597202812,1.64535229,2367.5,2367.4,17.0714614]
[1726597203312,0.39468206,2367.5,2367.4,20.0714614]
[1726597204091,1.32227159,2368.0,2367.4,15.8474214]
[1726597204313,1.76294458,2367.8,2367.5,2.4532]
[1726597204532,1.94432606,2367.7,2367.5,2.4532]
[1726597204728,0.62205447,2367.6,2367.5,2.4532]
[1726597205047,1.25351489,2367.6,2367.5,2.4532]
[1726597205215,1.64800076,2367.6,2367.5,2.4532]
[1726597205425,1.23755687,2367.6,2367.5,2.4532]
[1726597205761,0.6217396,2367.6,2367.5,6.67706]
[1726597205781,1.85903061,2367.6,2367.5,11.99510494]
[1726597206322,1.64738739,2367.6,2367.5,11.99510494]
[1726597206481,1.64738739,2367.6,2367.4,0.0404994]
[1726597206482,5.87108739,2367.6,2367.4,0.0404994]
[1726597206683,1.85903175,2367.5,2367.4,0.0404994]
[1726597207378,3.18130334,2367.5,2367.4,0.0404994]
[1726597207575,2.27978911,2367.5,2367.4,0.0404994]
[1726597207811,3.60076973,2367.5,2367.4,0.0404994]
[1726597208173,4.79928999,2367.5,2367.4,0.0404994]
[1726597208375,4.37853263,2367.5,2367.4,0.0404994]
[1726597208735,7.11883677,2367.5,2367.4,0.0404994]
[1726597209393,4.91698805,2367.5,2367.4,0.0404994]
[1726597209615,4.08360409,2367.5,2367.4,0.0404994]
[1726597209845,7.91707841,2367.5,2367.4,0.0404994]
[1726597210006,7.71052211,2367.5,2367.4,0.0404994]
[1726597210207,7.49882568,2367.5,2367.4,0.0404994]
[1726597211013,10.14126386,2367.5,2367.4,0.0404994]
[1726597211199,4.64742568,2367.5,2367.4,0.0404994]
[1726597211395,8.03948978,2367.5,2367.4,0.0404994]
[1726597211620,7.59909266,2367.5,2367.4,0.0404994]
[1726597211970,6.80223874,2367.5,2367.4,0.0404994]
[1726597212231,7.59937055,2367.5,2367.4,0.0404994]
[1726597212828,3.62110416,2367.5,2367.4,0.0404994]
[1726597215332,2.28016871,2367.5,2367.4,0.0404994]
[1726597215510,3.62110416,2367.5,2367.4,0.0404994]
[1726597216355,4.04186999,2367.5,2367.4,0.040512]
[1726597216539,3.62110416,2367.5,2367.4,0.040512]
[1726597216834,4.0418567,2367.5,2367.4,0.040512]
[1726597217005,3.62110416,2367.5,2367.4,0.040512]
[1726597217662,6.60688437,2367.5,2367.4,0.040512]
[1726597217844,6.83521175,2367.5,2367.4,0.040512]
[1726597218005,7.04690646,2367.5,2367.4,0.040512]
[1726597218207,4.84520853,2367.5,2367.4,0.040512]
[1726597218602,5.80848946,2367.5,2367.4,0.040512]
[1726597218783,4.84438088,2367.5,2367.4,0.040512]
[1726597218939,4.26210067,2367.5,2367.4,0.040512]
[1726597219139,4.85664906,2367.5,2367.4,0.040512]
[1726597220377,4.85695102,2367.5,2367.4,0.040512]
[1726597220777,5.08555501,2367.5,2367.4,0.040512]
[1726597220978,5.29783563,2367.5,2367.4,0.040512]
[1726597221180,3.91759143,2367.5,2367.4,0.040512]
[1726597221388,8.47345242,2367.5,2367.4,0.040512]
[1726597221681,8.68514655,2367.5,2367.4,0.040512]
[1726597222268,7.44822914,2367.5,2367.4,0.040512]
[1726597222376,7.44822914,2367.5,2366.7,0.0389943]
[1726597222377,2.3341,2367.4,2366.7,0.0389943]
[1726597222693,2.3341,2367.4,2366.0,0.0389943]
[1726597222694,0.55,2366.7,2366.0,0.0389943]
[1726597222904,2.20085466,2366.1,2366.0,0.0389943]
[1726597223191,3.45370898,2366.1,2366.0,0.0389943]
[1726597223347,4.67986883,2366.1,2366.0,0.0389943]
[1726597223544,7.01396883,2366.1,2366.0,0.0389943]
[1726597223909,8.2093837,2366.1,2366.0,0.0389943]
[1726597224217,12.07210015,2366.1,2366.0,0.0389943]
[1726597224507,10.00072586,2366.1,2366.0,0.0389943]
[1726597225300,12.641807,2366.1,2366.0,0.0389943]
[1726597225593,4.6727,2366.0,2365.3,0.0389943]
[1726597225717,11.80639829,2365.4,2365.3,0.0389943]
[1726597225909,13.83246801,2365.4,2364.6,0.0389943]
[1726597226114,9.97058011,2364.8,2364.7,0.0266466]
[1726597226295,1.0580682,2364.8,2364.7,0.0266466]
[1726597226496,3.8751663,2365.2,2364.7,0.0266466]
[1726597226794,1.04541083,2365.1,2364.7,0.0266466]
[1726597226970,1.04541083,2365.0,2364.7,0.0266466]
[1726597227168,0.8751663,2365.4,2364.8,2.4431]
[1726597227500,4.14888529,2365.6,2364.9,8.70377466]
[1726597227501,2.3955,2365.6,2364.9,8.70377466]
[1726597227808,0.6350252,2365.5,2364.9,4.47536466]
[1726597227974,0.6350252,2365.4,2364.9,0.24697466]
[1726597228180,0.55,2365.5,2364.8,2.4431]
[1726597228508,0.63499133,2365.4,2364.8,2.4431]
[1726597228821,0.55,2365.5,2364.8,2.4431]
[1726597228922,0.63500988,2365.4,2364.8,2.4431]
[1726597229208,6.62286,2365.6,2364.9,0.66984466]
[1726597229514,0.6349727,2365.5,2364.9,0.66984466]
[1726597229813,4.2278,2365.3,2364.8,2.4431]
[1726597229965,4.22798,2365.2,2364.7,0.0266466]
[1726597230168,4.22815,2365.1,2364.7,0.0266466]
[1726597230698,9.42854,2365.3,2364.7,0.0266466]
[1726597230873,5.20057,2365.3,2364.7,0.0266466]
[1726597231272,4.22817,2365.1,2364.7,0.0266466]
[1726597231488,5.20057,2365.3,2364.7,0.0266466]
[1726597231733,1.01419358,2365.2,2364.8,0.07078185]
[1726597231917,4.22958,2364.3,2363.5,0.015]
[1726597232280,8.4613,2363.7,2363.5,0.015]
[1726597232363,4.94136583,2363.9,2363.5,0.015]
[1726597232623,4.2306,2363.8,2363.5,0.015]
[1726597232808,4.23065,2363.7,2363.5,0.015]
[1726597233201,10.09905,2363.7,2363.5,0.015]
[1726597233396,2.3184,2363.7,2363.5,0.015]
[1726597233631,5.3184,2363.7,2363.5,0.015]
[1726597233814,7.26988024,2363.7,2363.5,0.015]
[1726597234333,11.50053024,2363.7,2363.5,0.015]
[1726597234533,4.26988024,2363.7,2363.5,0.015]
[1726597234731,4.23023,2364.0,2363.5,0.015]
[1726597235054,6.58983,2364.0,2363.5,0.015]
[1726597235204,7.22983,2364.2,2363.5,4.24599]
[1726597235482,3.0,2364.2,2363.6,0.49213339]
[1726597235630,2.3596,2364.5,2363.7,2.4153]
[1726597235916,4.22988,2364.2,2363.7,2.4153]
[1726597236428,4.22967,2364.3,2363.7,6.64585]
[1726597236631,4.22949,2364.4,2363.7,7.78428534]
[1726597236990,4.22917,2364.6,2363.8,8.46084]
[1726597237314,4.22917,2364.6,2363.7,3.55366534]
[1726597237315,4.22871,2364.8,2364.1,4.22984]
[1726597237501,4.22871,2364.8,2364.3,4.22955]
[1726597238026,6.63928,2365.1,2364.2,2.4124]
[1726597238229,4.22935,2364.5,2363.9,10.87279]
[1726597238554,4.22916,2364.6,2363.9,2.4124]
[1726597238900,4.22916,2364.6,2364.0,4.22994]
[1726597239297,4.22916,2364.6,2363.9,2.4124]
[1726597239298,0.422916,2364.6,2364.2,4.22963]
[1726597239500,4.22914,2364.6,2364.1,0.05637475]
[1726597239741,4.22914,2364.6,2364.3,0.05650251]
[1726597239941,7.22897,2364.7,2364.2,0.05656728]
[1726597240165,7.22897,2364.7,2364.4,0.05643774]
[1726597240442,4.22872,2364.8,2364.5,0.05637298]
[1726597240649,4.22895,2364.7,2364.1,8.45961]
[1726597240834,4.22895,2364.7,2364.1,4.22979]
[1726597241011,4.22895,2364.7,2364.2,4.22965]
[1726597241351,4.22895,2364.7,2364.2,4.28621728]
[1726597241699,8.45727,2364.9,2364.3,4.22949]
[1726597241904,4.22869,2364.8,2364.3,4.22949]
[1726597242104,4.22869,2364.8,2364.4,0.05643774]
[1726597242525,4.22887,2364.7,2364.4,0.05643774]
[1726597242898,4.67117562,2364.7,2364.4,0.05643774]
[1726597243316,4.22925,2364.5,2363.9,6.6426]
[1726597243548,4.22976,2364.2,2363.9,2.4124]
[1726597243710,4.22976,2364.2,2363.7,5.36889534]
[1726597244042,4.22951,2364.4,2363.8,5.29914902]
[1726597244244,4.22958,2364.3,2363.8,5.29904902]
[1726597244444,4.22978,2364.2,2363.8,5.29904902]
[1726597244647,4.22959,2364.3,2363.8,5.29904902]
[1726597244801,4.22932,2364.5,2363.8,5.29904902]
[1726597245000,4.22959,2364.3,2363.9,4.23029]
[1726597245207,4.2294,2364.4,2363.9,4.28532963]
[1726597246920,4.2294,2364.4,2364.0,4.23011]
[1726597247161,4.22932,2364.5,2364.0,4.23011]
[1726597247518,4.22932,2364.5,2364.1,0.0550059]
[1726597247715,4.22952,2364.4,2364.1,0.0550059]
[1726597248162,4.22952,2364.4,2363.9,4.23027]
[1726597248359,4.22952,2364.4,2364.2,0.05494112]
[1726597248675,4.22952,2364.4,2363.9,4.23027]
[1726597248832,4.22907,2364.6,2364.3,0.05487634]
[1726597249159,4.22922,2364.5,2364.0,4.23009]
[1726597249335,4.22922,2364.5,2364.4,0.05480007]
[1726597249532,4.86365813,2364.5,2363.8,5.29900902]
[1726597249732,4.86365813,2364.5,2364.4,0.05480007]
[1726597249733,9.16166256,2364.5,2364.4,0.05480007]
[1726597249980,4.22942,2364.4,2363.8,4.23033]
[1726597250269,0.63441646,2364.3,2364.1,4.22992]
[1726597250474,7.03097562,2364.7,2364.2,4.22967]
[1726597250774,0.6344172,2364.6,2364.3,4.22957]
[1726597250969,0.6344172,2364.5,2364.3,4.2295]
[1726597251267,4.67116562,2364.7,2364.4,0.0547694]
[1726597251463,0.63447716,2364.6,2364.4,0.0547694]
[1726597251670,0.63447716,2364.5,2364.3,4.22954]
[1726597251866,0.63447716,2364.4,2364.3,4.22954]
[1726597252248,0.63447716,2364.4,2364.2,6.65701]
[1726597252518,0.63441855,2364.3,2364.2,2.4273]
[1726597252973,0.63441855,2364.3,2364.2,6.65706]
[1726597253466,0.63441855,2364.3,2364.2,2.4273]
[1726597254457,0.63441855,2364.3,2364.2,6.65706]
[1726597254642,0.63441855,2364.3,2363.6,3.0613949]
[1726597254643,0.63441855,2364.3,2363.6,0.0613949]
[1726597254828,4.23029,2364.0,2363.6,0.0613949]
[1726597255047,4.23065,2363.7,2363.6,0.0613949]
[1726597255229,9.09571855,2363.7,2363.6,0.0613949]
[1726597255700,8.4613,2363.7,2363.6,0.0613949]
[1726597255870,10.36452424,2363.7,2363.6,0.0613949]
[1726597256640,6.13387424,2363.7,2363.6,0.0613949]
[1726597256858,4.86470624,2363.7,2363.6,0.0613949]
[1726597257173,0.63405624,2363.7,2363.6,0.0613949]
[1726597257361,0.63405624,2363.7,2363.6,0.11125464]
[1726597258169,0.63405624,2363.7,2363.6,2.60105464]
[1726597258373,0.63405624,2363.7,2363.6,3.2857461]
[1726597258688,0.63405624,2363.7,2363.6,7.5165761]
[1726597258900,0.63405624,2363.7,2363.6,11.7474061]
[1726597259074,4.22983,2364.2,2363.6,7.5165761]
[1726597259412,0.63418931,2364.1,2363.6,6.83188464]
[1726597259597,0.63418931,2364.0,2363.6,6.83188464]
[1726597259752,0.63418931,2363.9,2363.6,6.83188464]
[1726597260092,12.7935,2364.5,2363.6,6.83188464]
[1726597260093,0.63418931,2363.8,2363.6,6.83188464]
[1726597260395,0.63418931,2363.7,2363.6,11.06263464]
[1726597260562,0.63418931,2363.7,2363.6,12.5935151]
[1726597261399,0.63418931,2363.7,2363.6,8.3626851]
[1726597261621,0.63418931,2363.7,2363.6,0.11125464]
[1726597262070,4.86483931,2363.7,2363.6,0.11125464]
[1726597262463,9.09548931,2363.7,2363.6,0.11125464]
[1726597262665,0.63418931,2363.7,2363.6,0.11125464]
[1726597263668,0.63418931,2363.7,2363.6,15.10054464]
[1726597263874,7.42,2364.5,2364.4,4.2294]
[1726597264102,2.4172,2365.0,2364.4,4.2294]
[1726597264103,2.4172,2365.0,2364.6,4.22895]
[1726597264610,4.27229165,2365.4,2364.9,4.22833]
[1726597264805,4.22762,2365.4,2365.0,4.22818]
[1726597265111,2.4172,2365.7,2365.0,4.22818]
[1726597265112,4.22736,2365.6,2365.1,4.27390109]
[1726597265412,4.22736,2365.6,2365.1,0.04578109]
[1726597265413,4.22795,2365.3,2365.1,0.04578109]
[1726597265621,11.25494248,2365.2,2365.1,0.04578109]
[1726597265767,11.25494248,2365.2,2364.4,6.52619]
[1726597265768,2.79898054,2365.2,2364.4,2.2968]
[1726597265969,4.22807,2365.2,2364.7,4.22875]
[1726597266193,0.38177034,2365.1,2364.7,4.22875]
[1726597266404,7.22774,2365.4,2364.4,2.2968]
[1726597266405,4.22774,2365.4,2364.4,2.2968]
[1726597266610,0.38182741,2365.3,2365.0,4.22821]
[1726597266918,2.70164292,2365.5,2365.1,4.22814]
[1726597267071,0.3818986,2365.4,2365.0,4.22821]
[1726597267264,0.38189955,2365.3,2365.0,4.22821]
[1726597267507,0.38189955,2365.2,2364.8,8.45717]
[1726597267712,1.26564851,2365.2,2364.9,4.22838]
[1726597268000,0.38189955,2365.1,2364.8,4.22858]
[1726597268317,4.22771,2365.4,2365.0,4.22832]
[1726597268322,4.2277,2365.4,2364.9,4.2285]
[1726597268596,4.2277,2365.4,2364.8,4.22858]
[1726597268597,0.69293429,2365.3,2365.0,4.22831]
[1726597268770,1.30388791,2365.3,2364.9,4.22849]
[1726597268992,0.99279963,2365.2,2364.9,4.22849]
[1726597269172,0.99279963,2365.1,2364.9,4.2285]
[1726597269375,0.99277373,2365.0,2364.8,4.22858]
[1726597269678,0.38184601,2364.9,2364.8,4.22858]
[1726597270103,0.38184601,2364.9,2364.8,8.45726]
[1726597270323,0.38184601,2364.9,2364.7,4.22875]
[1726597270485,9.14876429,2365.3,2364.8,4.22868]
[1726597270671,1.52104465,2365.2,2364.8,4.22868]
[1726597270868,0.98694981,2365.1,2364.7,4.22875]
[1726597271174,0.98694981,2365.0,2364.8,4.22866]
[1726597271436,0.37959608,2364.9,2364.7,4.22875]
[1726597271683,0.37959608,2364.8,2364.7,4.22875]
[1726597273102,0.37946668,2364.8,2364.7,4.22875]
[1726597273302,8.45606,2365.2,2364.7,4.22875]
[1726597273625,5.21478957,2365.1,2364.7,4.22875]
[1726597273776,0.98660957,2365.0,2364.7,4.22872]
[1726597273984,0.98656048,2364.9,2364.7,4.22872]
[1726597274217,0.37946522,2364.8,2364.7,4.22872]
[1726597274404,0.37946522,2364.8,2364.5,4.22909]
[1726597274602,4.651019,2365.1,2364.6,4.22896]
[1726597274810,1.87440038,2365.0,2364.6,4.22896]
[1726597275032,6.10279038,2365.0,2364.5,4.22909]
[1726597275204,0.98649948,2364.9,2364.5,4.22919]
[1726597275503,0.98649948,2364.8,2364.6,0.04411265]
[1726597275708,7.82236034,2365.3,2364.8,4.22855]
[1726597275709,6.9271567,2365.3,2364.8,4.22855]
[1726597275890,0.98622909,2365.2,2364.8,4.22855]
[1726597276094,5.43964633,2365.3,2364.9,0.04368078]
[1726597276095,0.98622909,2365.1,2364.9,0.04368078]
[1726597276332,0.37931888,2365.0,2364.9,4.27215078]
[1726597276540,0.37931888,2365.2,2364.9,4.22847]
[1726597276692,0.37931888,2365.2,2364.9,4.27215078]
[1726597276693,2.29092164,2365.2,2364.9,4.27215078]
[1726597276891,0.98626712,2365.1,2364.9,0.04368078]
[1726597277624,0.37931888,2365.1,2364.9,0.04368078]
[1726597277816,0.37931888,2365.0,2364.9,0.04368078]
[1726597278187,5.53265452,2365.2,2364.9,0.04368078]
[1726597278188,0.98263874,2365.1,2364.9,0.04368078]
[1726597278494,0.37931888,2365.0,2364.7,4.22884]
[1726597278712,1.16185696,2365.1,2364.7,4.22884]
[1726597278901,0.3771134,2365.0,2364.7,4.22884]
[1726597279224,0.37710328,2364.9,2364.7,4.22884]
[1726597279407,0.8751663,2365.3,2365.0,4.22818]
[1726597279606,5.98092529,2365.5,2365.1,6.50435]
[1726597279607,0.37712716,2365.2,2365.1,6.50435]
[1726597279781,0.37712716,2365.2,2365.1,2.2762]
[1726597280126,0.37717337,2365.2,2365.1,2.2762]
[1726597280347,0.37717337,2365.2,2365.1,6.50428]
[1726597280549,0.37727062,2365.2,2365.1,6.50428]
[1726597280718,0.8751663,2365.5,2365.2,4.22797]
[1726597280913,0.98091363,2365.4,2365.2,4.22789]
[1726597281124,0.8751663,2365.6,2365.3,4.22779]
[1726597281447,0.3772949,2365.5,2365.1,2.2762]
[1726597281666,4.2281,2365.2,2364.8,2.2762]
[1726597281931,4.22801,2365.2,2364.8,2.2762]
[1726597282134,4.98450763,2365.1,2364.6,6.50513]
[1726597282320,0.75626763,2365.1,2364.7,4.22883]
[1726597282920,0.75626763,2365.1,2364.6,6.50513]
[1726597282921,0.75626763,2365.1,2364.8,4.22868]
[1726597283346,0.37721541,2365.0,2364.8,4.22859]
[1726597283547,4.22797,2365.2,2364.8,4.22859]
[1726597283745,3.72797,2365.2,2364.8,4.22859]
[1726597284275,0.8751663,2365.4,2364.6,6.50513]
[1726597284451,6.0835271,2365.3,2364.8,4.22857]
[1726597284655,0.37714438,2365.2,2364.8,4.22857]
[1726597285077,0.37714438,2365.2,2364.7,8.45755]
[1726597285078,4.60519438,2365.2,2364.7,8.45755]
[1726597285368,4.22805,2365.2,2364.7,4.22877]
[1726597285730,4.22805,2365.2,2364.7,8.45755]
[1726597286038,0.37714248,2365.1,2364.7,8.45754]
[1726597286553,4.22805,2365.2,2364.7,8.45754]
[1726597287054,0.3771716,2365.1,2364.7,8.45754]
[1726597287248,10.07070304,2365.3,2364.8,4.22868]
[1726597287563,4.60511491,2365.2,2364.8,4.22868]
[1726597287765,1.31514034,2365.4,2364.6,2.2762]
[1726597287766,5.1027963,2365.4,2365.0,4.22823]
[1726597287982,5.1027963,2365.4,2365.1,6.55661]
[1726597287983,0.37712054,2365.3,2365.1,6.55661]
[1726597288142,0.8751663,2365.5,2365.3,4.22769]
[1726597288344,0.37714904,2365.4,2365.3,8.45548]
[1726597288644,0.37714904,2365.4,2365.3,4.22769]
[1726597288875,0.8751663,2365.6,2365.2,4.22786]
[1726597289041,0.37715859,2365.5,2365.3,4.22777]
[1726597289235,0.3751663,2365.6,2365.3,4.22768]
[1726597289552,0.37717238,2365.5,2365.2,4.22784]
[1726597289748,0.37716268,2365.4,2365.2,8.4557]
[1726597289945,0.3751663,2365.6,2365.2,8.4557]
[1726597290177,0.37716348,2365.5,2365.2,4.22784]
[1726597290341,4.22734,2365.6,2365.3,0.04185051]
[1726597290534,0.37718289,2365.5,2365.3,0.04185051]
[1726597290741,4.22728,2365.6,2365.2,4.22784]
[1726597290981,0.37718663,2365.5,2365.4,0.0417858]
[1726597291184,0.37718663,2365.5,2365.3,0.04185051]
[1726597291185,1.26034129,2365.5,2365.3,0.04185051]
[1726597291387,4.22787,2365.3,2364.8,2.3419]
[1726597291886,4.22787,2365.3,2364.9,4.22849]
[1726597292044,0.39398951,2365.2,2364.9,4.22849]
[1726597292237,4.22787,2365.3,2364.9,4.22849]
[1726597292801,4.22752,2365.5,2365.0,4.22816]
[1726597293135,4.22752,2365.5,2365.1,4.2281]
[1726597293301,4.22727,2365.6,2365.2,4.22796]
[1726597293638,1.02428472,2365.5,2365.1,4.22805]
[1726597293838,0.39395232,2365.4,2365.1,4.22805]
[1726597294187,11.6472,2365.7,2365.3,6.56958]
[1726597294188,7.42,2365.7,2365.3,6.56958]
[1726597294478,0.3939806,2365.6,2365.3,6.56958]
[1726597294687,0.3939806,2365.5,2365.3,6.56958]
[1726597295040,0.3939806,2365.5,2365.3,10.79728]
[1726597295286,0.3939806,2365.5,2365.3,11.93008773]
[1726597295516,1.02427057,2365.7,2365.3,11.93008773]
[1726597295713,1.02427057,2365.7,2365.4,4.22758]
[1726597296017,0.39389005,2365.6,2365.3,6.56958]
[1726597296216,0.39389005,2365.5,2365.4,4.22754]
[1726597296565,0.39389005,2365.5,2365.3,6.56958]
[1726597296861,0.44195617,2365.8,2365.5,4.22742]
[1726597297213,0.44195617,2365.8,2365.4,4.884528]
[1726597297544,0.39381191,2365.7,2365.4,4.884528]
[1726597297856,0.39381191,2365.6,2365.5,0.08453564]
[1726597298035,0.39381191,2365.6,2365.5,10.95379518]
[1726597298240,7.42,2366.2,2365.6,4.2271]
[1726597298532,0.39384355,2366.1,2365.8,4.22681]
[1726597298857,0.0353524,2366.3,2365.9,0.08452464]
[1726597299005,0.39391054,2366.2,2365.9,1.08402946]
[1726597299228,0.0353524,2366.3,2365.9,1.08402946]
[1726597299570,4.2613624,2366.3,2365.8,4.22689]
[1726597299778,0.0353524,2366.3,2365.8,4.22689]
[1726597299932,0.0353524,2366.3,2365.9,4.22659]
[1726597300130,0.0353524,2366.3,2366.0,4.2265]
[1726597300382,0.0353524,2366.3,2366.2,4.22618]
[1726597300678,0.0353524,2366.3,2366.2,7.89560129]
[1726597301030,0.0353524,2366.3,2366.2,3.584912]
[1726597301331,0.0353524,2366.3,2366.2,2.4906]
[1726597303318,2.3294,2365.7,2365.0,2.3538]
[1726597303596,4.22815,2365.1,2365.0,2.3538]
[1726597303749,7.17858781,2365.7,2365.0,2.3538]
[1726597303750,4.22774,2365.4,2365.0,2.3538]
[1726597303951,4.22781,2365.3,2365.0,2.3538]
[1726597304978,4.22728,2365.6,2365.0,6.58199]
[1726597305186,0.3799721,2365.5,2365.3,4.22768]
[1726597305496,4.22695,2365.8,2365.4,0.08454351]
[1726597305643,0.38003765,2365.7,2365.4,0.08454351]
[1726597305997,4.22686,2365.9,2365.5,2.2683]
[1726597306291,0.38005845,2365.8,2365.6,4.22716]
[1726597306493,0.89730702,2366.3,2365.8,4.22674]
[1726597306644,0.84089125,2366.2,2365.8,4.22674]
[1726597306846,0.84089125,2366.2,2365.8,5.072124]
[1726597306847,0.62908767,2366.1,2365.8,5.072124]
[1726597307047,1.02595937,2366.0,2365.8,5.072124]
[1726597307287,0.62908767,2365.9,2365.8,9.299014]
[1726597307452,0.0353524,2366.3,2365.8,5.072124]
[1726597307453,0.62908767,2366.2,2365.8,5.072124]
[1726597307664,1.02597789,2366.1,2365.8,5.072124]
[1726597307991,0.62908767,2366.0,2365.8,9.298944]
[1726597308199,4.2613724,2366.3,2365.9,5.1566144]
[1726597308489,4.22904,2364.6,2364.0,3.07236315]
[1726597308664,5.08611404,2366.2,2364.4,2.3119]
[1726597308665,5.5396234,2365.4,2364.4,2.3119]
[1726597308862,4.856651,2365.3,2364.7,4.22869]
[1726597309066,0.628851,2365.2,2364.5,4.46026]
[1726597309398,4.22834,2365.0,2364.5,4.22907]
[1726597309554,1.02574055,2364.9,2364.5,4.22907]
[1726597309968,1.3119234,2365.3,2364.4,2.3119]
[1726597309969,0.62877019,2364.8,2364.4,2.3119]
[1726597310095,4.22913,2364.6,2364.0,6.67879]
[1726597310296,4.22913,2364.6,2364.0,6.6787]
[1726597310297,0.62877019,2364.5,2364.0,6.6787]
[1726597310464,0.62877019,2364.4,2364.0,6.6787]
[1726597310646,1.02509811,2364.3,2364.0,6.6787]
[1726597310847,4.22924,2364.5,2364.0,6.6787]
[1726597311077,4.22924,2364.5,2364.0,7.34657]
[1726597311078,1.02497519,2364.4,2364.0,7.34657]
[1726597311392,4.22924,2364.5,2364.0,7.34657]
[1726597311591,1.02494592,2364.4,2364.0,7.34657]
[1726597311887,1.02491651,2364.3,2364.0,2.4487]
[1726597312090,0.62843264,2364.2,2364.0,2.4487]
[1726597312302,4.22951,2364.4,2364.0,2.4487]
[1726597312501,0.62838097,2364.3,2364.0,7.769733]
[1726597312653,0.39646003,2364.3,2364.0,6.67873]
[1726597312844,8.31474998,2364.9,2363.6,4.2308]
[1726597312845,1.74922998,2365.4,2364.3,2.2896]
[1726597313157,5.70302496,2365.3,2364.7,4.22882]
[1726597313379,4.22809,2365.2,2364.7,4.22882]
[1726597313594,4.22809,2365.2,2364.7,8.45755]
[1726597313595,0.62863293,2365.1,2364.7,8.45755]
[1726597313788,0.62863293,2365.1,2364.7,4.22877]
[1726597313993,0.62863293,2365.1,2364.7,8.45754]
[1726597314191,0.62863293,2365.1,2364.7,5.074524]
[1726597314391,0.62863293,2365.1,2364.8,4.22865]
[1726597314610,0.62863293,2365.0,2364.8,4.22865]
[1726597314787,4.22781,2365.3,2364.8,4.22865]
[1726597315119,1.2401942,2365.2,2364.8,4.22865]
[1726597315298,0.62866672,2365.1,2364.8,4.22865]
[1726597315467,0.62866672,2365.0,2364.8,5.1589674]
[1726597315799,0.62866672,2364.9,2364.8,5.1589674]
[1726597316103,0.62872536,2365.2,2364.8,5.1589674]
[1726597316271,0.62868198,2365.1,2364.8,5.1589674]
[1726597316500,0.62867413,2365.0,2364.8,5.1589674]
[1726597316795,4.22781,2365.3,2364.8,5.1589674]
[1726597316995,1.240217,2365.2,2364.9,4.22847]
[1726597317197,0.6286771,2365.1,2364.9,4.22847]
[1726597317402,0.6286771,2365.0,2364.9,4.22847]
[1726597317606,0.6286771,2365.2,2364.9,4.22847]
[1726597317816,0.6286771,2365.1,2364.9,4.22847]
[1726597318096,0.6286771,2365.0,2364.9,4.22847]
[1726597318297,0.6286771,2365.0,2364.7,8.45746]
[1726597318455,4.22787,2365.3,2364.8,5.074296]
[1726597318658,0.62863135,2365.2,2364.8,4.22855]
[1726597318860,0.62863135,2365.1,2364.9,4.22846]
[1726597319169,0.62863135,2365.0,2364.9,4.22846]
[1726597319796,4.22779,2365.3,2364.9,4.22846]
[1726597320199,4.85669561,2365.2,2364.7,4.22871]
[1726597320546,4.85678974,2365.1,2364.7,4.22884]
[1726597320556,0.62860974,2365.0,2364.7,4.22884]
[1726597320682,0.62860974,2365.0,2364.5,4.22907]
[1726597320683,4.22859,2364.9,2364.5,8.4582]
[1726597320962,0.62866072,2364.8,2364.6,4.22892]
[1726597321157,2.3845,2365.1,2364.3,6.51906]
[1726597321357,5.70709835,2365.0,2364.4,4.22937]
[1726597321582,1.24017835,2364.9,2364.6,4.22894]
[1726597321790,0.62863187,2364.8,2364.7,4.22886]
[1726597322146,0.62863187,2364.8,2364.6,4.22894]
[1726597322418,2.3845,2365.1,2364.6,5.07483]
[1726597322556,0.63308238,2365.0,2364.6,9.30375]
[1726597322763,0.63308238,2364.9,2364.6,9.30375]
[1726597322955,0.63308238,2364.8,2364.6,9.30375]
[1726597323256,6.61273,2365.1,2364.6,5.07474]
[1726597323473,1.27144025,2365.0,2364.6,5.07474]
[1726597323798,0.63306712,2364.9,2364.7,4.22884]
[1726597323971,0.63306712,2364.8,2364.7,4.22884]
[1726597324370,8.73460304,2365.3,2364.9,4.22839]
[1726597324572,1.27011107,2365.2,2365.0,4.22821]
[1726597324889,6.61228,2365.4,2365.0,4.22821]
[1726597324890,1.66836087,2365.1,2365.0,4.22821]
[1726597325068,1.03124541,2365.1,2365.0,4.22821]
[1726597325258,1.03124541,2365.1,2365.0,9.536494]
[1726597325750,2.3845,2365.4,2365.1,4.2281]
[1726597325943,0.63311194,2365.3,2365.1,4.2281]
[1726597326076,0.63311194,2365.2,2365.1,4.2281]
[1726597326875,1.66849973,2365.2,2365.1,4.2281]
[1726597327368,1.03133301,2365.2,2365.1,9.4098774]
[1726597327613,1.03133301,2365.2,2365.1,8.45625]
[1726597328520,1.03145051,2365.2,2365.1,8.45625]
[1726597329366,1.03144931,2365.2,2365.1,8.45625]
[1726597329518,1.03144931,2365.2,2365.1,4.2281]
[1726597330428,1.03144931,2365.2,2365.0,8.45652]
[1726597330729,1.03144931,2365.1,2365.0,4.22825]
[1726597330870,1.03144931,2365.1,2364.7,4.22881]
[1726597331073,0.63322824,2365.0,2364.7,4.22877]
[1726597331399,5.26374224,2365.1,2364.7,8.45755]
[1726597331400,1.66865759,2364.9,2364.7,8.45755]
[1726597331723,1.03144931,2364.8,2364.7,4.22877]
[1726597331886,1.03144931,2364.8,2364.7,8.45763]
[1726597332217,0.63322824,2364.8,2364.7,9.548173]
[1726597332531,0.63196595,2364.8,2364.7,9.548173]
[1726597332814,7.42,2365.4,2365.0,4.22817]
[1726597332985,1.03552004,2365.3,2365.0,4.22817]
[1726597333186,1.03552004,2365.2,2365.0,4.22817]
[1726597333403,0.39827694,2365.1,2365.0,4.22817]
[1726597333585,1.03553554,2365.1,2364.7,5.319293]
[1726597333792,2.3697,2364.9,2364.2,2.4994]
[1726597333997,0.39825912,2364.8,2364.5,4.22921]
[1726597334229,0.39825912,2364.7,2364.5,4.22921]